{"text_format":"3","workbook":"xlsx","n_sheets":4,"sheets":["Formulir Penawaran","Data Bagan","Uraian Biaya","Ringkasan Biaya Penawaran"],"not_rendered":{"charts":1,"images":2,"defined_names":11},"read":"whole","date_system":"1900"}

{"sheet":"Formulir Penawaran","index":0,"n_rows":21,"n_cols":6,"rows_kept":21,"merged":[[0,1,0,4],[1,1,1,2],[7,1,8,1],[7,2,8,2],[10,1,10,5],[12,1,12,5],[14,1,14,5],[15,1,15,2],[15,4,15,5],[16,1,16,2],[16,4,16,5],[18,1,18,5],[19,1,19,2],[19,4,19,5],[20,1,20,2],[20,4,20,5]]}
[null,"Formulir Penawaran Konstruksi"]
[null,"Informasi Pemilik",null,null,"Informasi Kontraktor"]
[null,"Nama","Masukkan Nama pemilik ke dalam sel ini",null,"Perusahaan","Masukkan Nama perusahaan kontraktor ke dalam sel ini"]
[null,"Alamat","Masukkan Alamat pemilik ke dalam sel ini",null,"Nama","Masukkan Nama kontraktor ke dalam sel ini"]
[null,"Kota, Provinsi, Kode Pos","Masukkan Kota, Provinsi, dan Kode pos pemilik ke dalam sel ini",null,"Alamat","Masukkan Alamat kontraktor ke dalam sel ini"]
[null,"Telepon","Masukkan Nomor telepon pemilik ke dalam sel ini",null,"Kota, Provinsi, Kode Pos","Masukkan Kota, Provinsi, dan Kode pos kontraktor ke dalam sel ini"]
[null,"Email","Masukkan Alamat email pemilik ke dalam sel ini",null,"Telepon","Masukkan Nomor telepon kontraktor ke dalam sel ini"]
[null,"Nama proyek","Masukkan Nama proyek ke dalam sel ini",null,"Email","Masukkan Alamat email kontraktor ke dalam sel ini "]
[{"$nulls":4},"Tanggal penyelesaian","Masukkan Tanggal penyelesaian ke dalam sel ini"]
[null,"Ruang Lingkup Pekerjaan"]
[null,"Ruang lingkup proyek pekerjaan ditempatkan di sini. Ketik semua spesifikasi yang Anda inginkan. \n\nTeks contoh: Ini akan menjadi proyek tiruan untuk membangun satu set tangga besar. Kami hanya akan menggunakan kayu 2x4 dan 2x8, serta braket balok, untuk menyusun bingkai. Tangga akan dipotong dari bahan 2x4. Sekrup yang akan digunakan tidak kurang dari 2\".  Paku tidak akan kurang dari 10 sen. Bobot desain akan menahan minimal 500 pon per anak tangga. Anak tangga akan sejajar dengan rumah. Papan pijakan akan diikat ke rumah. Kontraktor akan mengurus pembersihan."]
[null,"Tidak Disertakan"]
[null,"Detail proyek yang tidak disertakan ditempatkan di sini. Ketik semua hal yang tidak disertakan dalam penawaran ini. \n\nTeks contoh: Tidak ada rel yang akan dipasang. Tanah yang akan disiapkan oleh pemilik. Tangga yang akan dicat oleh pemilik."]
[null,"Proposal Perusahaan"]
[null,"Proposal perusahaan ditempatkan di sini. Ketik gambaran umum proposal, termasuk siapa yang mengusulkan pekerjaan, perkiraan tanggal penyelesaian, dan jumlah proposal.\n\nTeks contoh: Kami, Nama Perusahaan, mengusulkan ruang lingkup pekerjaan di atas, yang akan diselesaikan sebelum Tanggal Penyelesaian untuk jumlah sebesar Jumlah Total."]
[]
[null,"Diserahkan oleh (Perwakilan Perusahaan)",null,null,"Tanggal"]
[null,"Penerimaan Pemilik"]
[null,"Penerimaan pemilik ditempatkan di sini. Ketik nama Pemilik dalam pernyataan konfirmasi yang menyertakan tanggal penyelesaian dan jumlah total yang dinyatakan dalam proposal perusahaan. \n\nTeks contoh: Saya, Nama Pemilik, menerima ruang lingkup pekerjaan di atas, yang diusulkan untuk diselesaikan sebelum Tanggal Penyelesaian untuk jumlah sebesar Jumlah Total."]
[]
[null,"Diserahkan oleh (pemilik rumah atau perwakilan resmi)",null,null,"Tanggal"]

{"sheet":"Data Bagan","index":1,"n_rows":7,"n_cols":3,"rows_kept":7,"hidden":true}
[]
[null,null,"Total"]
[null,{"$f":"INDEX(ItemPenawaran[#Data],MATCH(1,ItemPenawaran[Biaya yang Diperingkat],0),2)","v":"Biaya tenaga kerja"},{"$f":"INDEX(ItemPenawaran[#Data],MATCH(1,ItemPenawaran[Biaya yang Diperingkat],0),4)","v":200}]
[null,{"$f":"INDEX(ItemPenawaran[#Data],MATCH(2,ItemPenawaran[Biaya yang Diperingkat],0),2)","v":"Kayu 2x4x10"},{"$f":"INDEX(ItemPenawaran[#Data],MATCH(2,ItemPenawaran[Biaya yang Diperingkat],0),4)","v":99.39999999999999}]
[null,{"$f":"INDEX(ItemPenawaran[#Data],MATCH(3,ItemPenawaran[Biaya yang Diperingkat],0),2)","v":"Braket balok"},{"$f":"INDEX(ItemPenawaran[#Data],MATCH(3,ItemPenawaran[Biaya yang Diperingkat],0),4)","v":74.7}]
[null,{"$f":"INDEX(ItemPenawaran[#Data],MATCH(4,ItemPenawaran[Biaya yang Diperingkat],0),2)","v":"Kayu 2x8x10"},{"$f":"INDEX(ItemPenawaran[#Data],MATCH(4,ItemPenawaran[Biaya yang Diperingkat],0),4)","v":33.75}]
[null,{"$f":"INDEX(ItemPenawaran[#Data],MATCH(5,ItemPenawaran[Biaya yang Diperingkat],0),2)","v":"Sepasang sarung tangan, kulit"},{"$f":"INDEX(ItemPenawaran[#Data],MATCH(5,ItemPenawaran[Biaya yang Diperingkat],0),4)","v":15.5}]

{"sheet":"Uraian Biaya","index":2,"n_rows":14,"n_cols":6,"rows_kept":14,"merged":[[0,1,0,4],[1,1,1,4]]}
[null,"Uraian Biaya",{"$nulls":3}," "]
[null,"Daftar Bahan dan Biaya"]
[null,"Jml.","Deskripsi","Biaya","Total","Biaya yang Diperingkat"]
[null,5,"Kayu 2x8x10",{"v":6.75,"d":"Rp6.75"},{"$f":"IFERROR(ItemPenawaran[[#This Row],[Biaya]]*ItemPenawaran[[#This Row],[Jml.]], \"\")","v":{"v":33.75,"d":"Rp33.75"}},{"$f":"_xlfn.RANK.EQ(ItemPenawaran[[#This Row],[Total]],ItemPenawaran[Total])","v":4}]
[null,20,"Kayu 2x4x10",{"v":4.97,"d":"Rp4.97"},{"$f":"IFERROR(ItemPenawaran[[#This Row],[Biaya]]*ItemPenawaran[[#This Row],[Jml.]], \"\")","v":{"v":99.39999999999999,"d":"Rp99.40"}},{"$f":"_xlfn.RANK.EQ(ItemPenawaran[[#This Row],[Total]],ItemPenawaran[Total])","v":2}]
[null,30,"Braket balok",{"v":2.49,"d":"Rp2.49"},{"$f":"IFERROR(ItemPenawaran[[#This Row],[Biaya]]*ItemPenawaran[[#This Row],[Jml.]], \"\")","v":{"v":74.7,"d":"Rp74.70"}},{"$f":"_xlfn.RANK.EQ(ItemPenawaran[[#This Row],[Total]],ItemPenawaran[Total])","v":3}]
[null,2,"Kotak sekrup, 2 inci",{"v":6.67,"d":"Rp6.67"},{"$f":"IFERROR(ItemPenawaran[[#This Row],[Biaya]]*ItemPenawaran[[#This Row],[Jml.]], \"\")","v":{"v":13.34,"d":"Rp13.34"}},{"$f":"_xlfn.RANK.EQ(ItemPenawaran[[#This Row],[Total]],ItemPenawaran[Total])","v":6}]
[null,2,"Kotak paku, 10 sen",{"v":3.25,"d":"Rp3.25"},{"$f":"IFERROR(ItemPenawaran[[#This Row],[Biaya]]*ItemPenawaran[[#This Row],[Jml.]], \"\")","v":{"v":6.5,"d":"Rp6.50"}},{"$f":"_xlfn.RANK.EQ(ItemPenawaran[[#This Row],[Total]],ItemPenawaran[Total])","v":7}]
[null,2,"Sepasang sarung tangan, kulit",{"v":7.75,"d":"Rp7.75"},{"$f":"IFERROR(ItemPenawaran[[#This Row],[Biaya]]*ItemPenawaran[[#This Row],[Jml.]], \"\")","v":{"v":15.5,"d":"Rp15.50"}},{"$f":"_xlfn.RANK.EQ(ItemPenawaran[[#This Row],[Total]],ItemPenawaran[Total])","v":5}]
[null,2,"Biaya tenaga kerja",{"v":100,"d":"Rp100.00"},{"$f":"IFERROR(ItemPenawaran[[#This Row],[Biaya]]*ItemPenawaran[[#This Row],[Jml.]], \"\")","v":{"v":200,"d":"Rp200.00"}},{"$f":"_xlfn.RANK.EQ(ItemPenawaran[[#This Row],[Total]],ItemPenawaran[Total])","v":1}]
[4,null,null,"Subtotal",{"$f":"SUBTOTAL(109,ItemPenawaran[Total])","v":{"v":443.18999999999994,"d":"Rp443.19"}}]
[5,null,null,"Tarif pajak",{"v":0.075,"d":"7.50%"}]
[{"$nulls":3},"Pajak",{"$f":"IFERROR(TarifPajak*ItemPenawaran[[#Totals],[Total]], \"\")","v":{"v":33.23924999999999,"d":"Rp33.24"}}]
[{"$nulls":3},"Total keseluruhan",{"$f":"IFERROR(Pajak+ItemPenawaran[[#Totals],[Total]], \"\")","v":{"v":476.4292499999999,"d":"Rp476.43"}}]

{"sheet":"Ringkasan Biaya Penawaran","index":3,"n_rows":3,"n_cols":4,"rows_kept":3}
[null,"Ringkasan Biaya Penawaran"]
[null,"Uraian Bahan dan Biaya",null,"Catatan"]
[null,"Bagan pai memperlihatkan 5 biaya per bahan teratas. Data didasarkan pada tabel Item Penawaran pada lembar kerja Uraian Biaya",null,"Masukkan catatan ke dalam sel ini."]